[Event "*** SCC Grand Prix: Titled Tuesday Blitz"]
[Site "Chess.com"]
[Date "2020.09.29"]
[Round "10"]
[White "Guenplen"]
[Black "PavelShkapenko"]
[Result "1/2-1/2"]
[WhiteElo "2863"]
[BlackElo "2722"]
[TimeControl "180+1"]
[EndTime "11:56:53 PDT"]
[Termination "Game drawn - insufficient material"]

1. d4 {[%clk 0:03:00.9]} 1... Nf6 {[%clk 0:02:59.3]} 2. Bf4 {[%clk 0:03:00.6]}
2... e6 {[%clk 0:02:58.8]} 3. e3 {[%clk 0:03:00.3]} 3... c5 {[%clk 0:02:58.8]}
4. c3 {[%clk 0:03:00.3]} 4... b6 {[%clk 0:02:54.2]} 5. Nd2 {[%clk 0:02:57.8]}
5... Bb7 {[%clk 0:02:54.3]} 6. Ngf3 {[%clk 0:02:57.9]} 6... cxd4 {[%clk
0:02:54.3]} 7. exd4 {[%clk 0:02:55.9]} 7... Be7 {[%clk 0:02:54.5]} 8. h3 {[%clk
0:02:55.6]} 8... d6 {[%clk 0:02:54.4]} 9. Bd3 {[%clk 0:02:52.3]} 9... Nbd7
{[%clk 0:02:54.4]} 10. Qe2 {[%clk 0:02:51.7]} 10... a6 {[%clk 0:02:54.5]} 11.
O-O {[%clk 0:02:50.9]} 11... O-O {[%clk 0:02:54.5]} 12. a4 {[%clk 0:02:49.5]}
12... Re8 {[%clk 0:02:54.5]} 13. Bh2 {[%clk 0:02:49.4]} 13... Bf8 {[%clk
0:02:54.7]} 14. Rfd1 {[%clk 0:02:47.2]} 14... e5 {[%clk 0:02:41.9]} 15. dxe5
{[%clk 0:02:44.5]} 15... dxe5 {[%clk 0:02:42.4]} 16. Ne4 {[%clk 0:02:37.2]}
16... Bxe4 {[%clk 0:02:35.9]} 17. Bxe4 {[%clk 0:02:38.1]} 17... Nxe4 {[%clk
0:02:36.1]} 18. Qxe4 {[%clk 0:02:37.5]} 18... Qc7 {[%clk 0:02:36.6]} 19. Bg3
{[%clk 0:02:23.7]} 19... Rac8 {[%clk 0:01:44.2]} 20. Rd2 {[%clk 0:02:08.3]}
20... Nc5 {[%clk 0:01:08.9]} 21. Qc2 {[%clk 0:02:07.6]} 21... f6 {[%clk
0:01:06.6]} 22. Rad1 {[%clk 0:02:03.7]} 22... Qf7 {[%clk 0:01:05.9]} 23. b4
{[%clk 0:02:00.8]} 23... Ne6 {[%clk 0:01:04.7]} 24. Qb3 {[%clk 0:01:39.2]} 24...
Red8 {[%clk 0:00:53.1]} 25. Bxe5 {[%clk 0:00:50.5]} 25... Rxd2 {[%clk
0:00:46.5]} 26. Rxd2 {[%clk 0:00:51.4]} 26... fxe5 {[%clk 0:00:46.2]} 27. Nxe5
{[%clk 0:00:52.3]} 27... Qf6 {[%clk 0:00:45.4]} 28. Nd7 {[%clk 0:00:51.1]} 28...
Qf7 {[%clk 0:00:44]} 29. Ne5 {[%clk 0:00:47.2]} 29... Qf6 {[%clk 0:00:43.8]} 30.
Re2 {[%clk 0:00:44.2]} 30... Re8 {[%clk 0:00:39.9]} 31. Qc4 {[%clk 0:00:36.4]}
31... Kh8 {[%clk 0:00:28.2]} 32. g3 {[%clk 0:00:32]} 32... Re7 {[%clk
0:00:22.1]} 33. f4 {[%clk 0:00:27.8]} 33... g6 {[%clk 0:00:21.8]} 34. Qxa6
{[%clk 0:00:23.4]} 34... g5 {[%clk 0:00:19.6]} 35. Qc8 {[%clk 0:00:12.8]} 35...
gxf4 {[%clk 0:00:15.5]} 36. Ng4 {[%clk 0:00:13.2]} 36... Qg6 {[%clk 0:00:11.9]}
37. Rxe6 {[%clk 0:00:12.5]} 37... Rxe6 {[%clk 0:00:12.2]} 38. Qxf8+ {[%clk
0:00:12]} 38... Qg8 {[%clk 0:00:12.5]} 39. Qxf4 {[%clk 0:00:09.1]} 39... Qe8
{[%clk 0:00:12.1]} 40. Nf2 {[%clk 0:00:07.2]} 40... Kg7 {[%clk 0:00:09.6]} 41.
Kh2 {[%clk 0:00:07]} 41... Re2 {[%clk 0:00:09.3]} 42. Qg5+ {[%clk 0:00:06]}
42... Kh8 {[%clk 0:00:08.8]} 43. Qf6+ {[%clk 0:00:05.7]} 43... Kg8 {[%clk
0:00:09.2]} 44. h4 {[%clk 0:00:05.8]} 44... Qe3 {[%clk 0:00:09.1]} 45. Kg2
{[%clk 0:00:06.2]} 45... Qe4+ {[%clk 0:00:09.4]} 46. Qf3 {[%clk 0:00:05]} 46...
Qxf3+ {[%clk 0:00:08.2]} 47. Kxf3 {[%clk 0:00:05.9]} 47... Ra2 {[%clk
0:00:08.2]} 48. a5 {[%clk 0:00:05.9]} 48... bxa5 {[%clk 0:00:08]} 49. bxa5
{[%clk 0:00:06.8]} 49... Rxa5 {[%clk 0:00:08.4]} 50. Ne4 {[%clk 0:00:07.7]}
50... Kg7 {[%clk 0:00:08.3]} 51. Kf4 {[%clk 0:00:07.8]} 51... Ra4 {[%clk
0:00:07.7]} 52. Ke5 {[%clk 0:00:07.9]} 52... Ra5+ {[%clk 0:00:07.6]} 53. Kd4
{[%clk 0:00:08]} 53... Kg6 {[%clk 0:00:07.7]} 54. c4 {[%clk 0:00:08.2]} 54...
Kf5 {[%clk 0:00:07.8]} 55. Ng5 {[%clk 0:00:04.8]} 55... Kg4 {[%clk 0:00:07.2]}
56. Nxh7 {[%clk 0:00:04.5]} 56... Kxg3 {[%clk 0:00:07.4]} 57. Nf6 {[%clk
0:00:03.4]} 57... Kxh4 {[%clk 0:00:07.6]} 58. Ne4 {[%clk 0:00:03.1]} 58... Ra4
{[%clk 0:00:07.7]} 59. Kd5 {[%clk 0:00:03.7]} 59... Rxc4 {[%clk 0:00:07.9]} 60.
Kxc4 {[%clk 0:00:04.6]} 1/2-1/2

[Event "*** SCC Grand Prix: Titled Tuesday Blitz"]
[Site "Chess.com"]
[Date "2020.09.29"]
[Round "10"]
[White "RaunakSadhwani2005"]
[Black "ViditYT"]
[Result "0-1"]
[WhiteElo "2913"]
[BlackElo "2741"]
[TimeControl "180+1"]
[EndTime "11:56:56 PDT"]
[Termination "ViditYT won by resignation"]

1. Nf3 {[%clk 0:03:00.9]} 1... d5 {[%clk 0:02:50.8]} 2. b3 {[%clk 0:02:59.9]}
2... c5 {[%clk 0:02:49.9]} 3. Bb2 {[%clk 0:02:59.6]} 3... Nc6 {[%clk 0:02:50.2]}
4. e3 {[%clk 0:02:57.9]} 4... a6 {[%clk 0:02:50.5]} 5. d4 {[%clk 0:02:56.4]}
5... Nf6 {[%clk 0:02:50.8]} 6. Bd3 {[%clk 0:02:55.2]} 6... Bg4 {[%clk
0:02:50.3]} 7. h3 {[%clk 0:02:54.5]} 7... Bh5 {[%clk 0:02:46.6]} 8. Nbd2 {[%clk
0:02:54.9]} 8... e6 {[%clk 0:02:46.2]} 9. O-O {[%clk 0:02:50.8]} 9... cxd4
{[%clk 0:02:44.1]} 10. exd4 {[%clk 0:02:49.7]} 10... Rc8 {[%clk 0:02:44.5]} 11.
a3 {[%clk 0:02:49.4]} 11... Bd6 {[%clk 0:02:43.7]} 12. Re1 {[%clk 0:02:47.6]}
12... O-O {[%clk 0:02:43.3]} 13. Qe2 {[%clk 0:02:47.7]} 13... b5 {[%clk
0:02:33]} 14. b4 {[%clk 0:02:43.6]} 14... Nd7 {[%clk 0:01:59.6]} 15. Nb3 {[%clk
0:02:34.4]} 15... Nb6 {[%clk 0:01:59.7]} 16. Nc5 {[%clk 0:02:15.7]} 16... Ra8
{[%clk 0:01:48.6]} 17. g4 {[%clk 0:02:03.8]} 17... Bg6 {[%clk 0:01:47.9]} 18.
Bxg6 {[%clk 0:01:48.7]} 18... hxg6 {[%clk 0:01:48.8]} 19. Bc1 {[%clk 0:01:47.3]}
19... Nc4 {[%clk 0:01:35.4]} 20. Bg5 {[%clk 0:01:44.3]} 20... Qc8 {[%clk
0:01:32.9]} 21. Nd3 {[%clk 0:01:37.2]} 21... a5 {[%clk 0:01:32.9]} 22. c3 {[%clk
0:01:36.9]} 22... Qc7 {[%clk 0:01:26]} 23. Nfe5 {[%clk 0:01:08.6]} 23... Bxe5
{[%clk 0:01:23]} 24. dxe5 {[%clk 0:01:09.5]} 24... axb4 {[%clk 0:01:23]} 25.
cxb4 {[%clk 0:01:05.2]} 25... Rxa3 {[%clk 0:01:19.7]} 26. Rxa3 {[%clk 0:01:05]}
26... Nxa3 {[%clk 0:01:20.6]} 27. Be3 {[%clk 0:00:48.2]} 27... Nc4 {[%clk
0:01:17.3]} 28. Bc5 {[%clk 0:00:48.1]} 28... Ra8 {[%clk 0:01:17.2]} 29. h4
{[%clk 0:00:40.5]} 29... Qd8 {[%clk 0:01:15.7]} 30. Kg2 {[%clk 0:00:37.3]} 30...
Ra3 {[%clk 0:01:02.4]} 31. Rh1 {[%clk 0:00:37.2]} 31... d4 {[%clk 0:00:29.5]}
32. Qe4 {[%clk 0:00:18.3]} 32... Qa8 {[%clk 0:00:26.1]} 33. f3 {[%clk
0:00:13.2]} 33... N6xe5 {[%clk 0:00:12.5]} 34. Qxa8+ {[%clk 0:00:14.1]} 34...
Rxa8 {[%clk 0:00:12]} 35. Nxe5 {[%clk 0:00:15]} 35... Nxe5 {[%clk 0:00:12.7]}
36. Bxd4 {[%clk 0:00:15.9]} 36... Nc4 {[%clk 0:00:12.9]} 37. h5 {[%clk
0:00:16.5]} 37... gxh5 {[%clk 0:00:12.5]} 38. gxh5 {[%clk 0:00:17.4]} 38... f6
{[%clk 0:00:12.4]} 39. h6 {[%clk 0:00:17.1]} 39... e5 {[%clk 0:00:12.8]} 40. Bc5
{[%clk 0:00:16.1]} 40... gxh6 {[%clk 0:00:12.9]} 41. Rxh6 {[%clk 0:00:15.9]}
41... Kg7 {[%clk 0:00:13.5]} 42. Rh1 {[%clk 0:00:15.3]} 42... Ra2+ {[%clk
0:00:13.3]} 43. Kg3 {[%clk 0:00:15.7]} 43... Ra3 {[%clk 0:00:13.1]} 44. Kg4
{[%clk 0:00:15.1]} 44... Kg6 {[%clk 0:00:12.8]} 45. Rg1 {[%clk 0:00:12.4]} 45...
f5+ {[%clk 0:00:12.5]} 46. Kh4+ {[%clk 0:00:11.9]} 46... Kf6 {[%clk 0:00:13.1]}
47. Rg3 {[%clk 0:00:07.3]} 47... f4 {[%clk 0:00:13.3]} 48. Rg8 {[%clk
0:00:04.5]} 48... Rxf3 {[%clk 0:00:12.8]} 49. Rf8+ {[%clk 0:00:05.4]} 49... Ke6
{[%clk 0:00:12.1]} 50. Re8+ {[%clk 0:00:05.6]} 50... Kd5 {[%clk 0:00:12.3]} 51.
Rb8 {[%clk 0:00:04.6]} 51... Na3 {[%clk 0:00:11.6]} 52. Kg4 {[%clk 0:00:03.2]}
52... Ke4 {[%clk 0:00:11.6]} 53. Kh4 {[%clk 0:00:01.6]} 53... Rg3 {[%clk
0:00:11.5]} 54. Re8 {[%clk 0:00:02]} 54... Rg6 {[%clk 0:00:10.8]} 55. Kh3 {[%clk
0:00:01.4]} 55... f3 {[%clk 0:00:10.6]} 56. Kh4 {[%clk 0:00:01.4]} 56... Nc4
{[%clk 0:00:10.7]} 57. Kh5 {[%clk 0:00:02.3]} 57... Rg2 {[%clk 0:00:10.2]} 58.
Rf8 {[%clk 0:00:02]} 58... Ne3 {[%clk 0:00:10.3]} 59. Rf6 {[%clk 0:00:02.3]}
59... f2 {[%clk 0:00:09.9]} 0-1

[Event "*** SCC Grand Prix: Titled Tuesday Blitz"]
[Site "Chess.com"]
[Date "2020.09.29"]
[Round "10"]
[White "Xeniya2005"]
[Black "hawes33"]
[Result "1-0"]
[WhiteElo "2377"]
[BlackElo "2223"]
[TimeControl "180+1"]
[EndTime "11:56:59 PDT"]
[Termination "Xeniya2005 won by checkmate"]

1. e4 {[%clk 0:03:00.9]} 1... c5 {[%clk 0:02:54.3]} 2. Be2 {[%clk 0:02:58.9]}
2... d6 {[%clk 0:02:53.9]} 3. f4 {[%clk 0:02:57.4]} 3... Nf6 {[%clk 0:02:54.2]}
4. d3 {[%clk 0:02:56.6]} 4... g6 {[%clk 0:02:54.3]} 5. Nf3 {[%clk 0:02:54.3]}
5... Bg7 {[%clk 0:02:54.6]} 6. O-O {[%clk 0:02:53]} 6... O-O {[%clk 0:02:55.1]}
7. c3 {[%clk 0:02:50.7]} 7... a6 {[%clk 0:02:54.8]} 8. Kh1 {[%clk 0:02:50.3]}
8... Nc6 {[%clk 0:02:55]} 9. Be3 {[%clk 0:02:47.7]} 9... Ng4 {[%clk 0:02:54.4]}
10. Bg1 {[%clk 0:02:46.2]} 10... b5 {[%clk 0:02:54.8]} 11. Nbd2 {[%clk
0:02:44.6]} 11... Bb7 {[%clk 0:02:54.6]} 12. a3 {[%clk 0:02:38.9]} 12... h5
{[%clk 0:02:54]} 13. h3 {[%clk 0:02:35.2]} 13... Nf6 {[%clk 0:02:50.8]} 14. Rc1
{[%clk 0:02:33.4]} 14... Rc8 {[%clk 0:02:49.4]} 15. Bh2 {[%clk 0:02:26.7]} 15...
e6 {[%clk 0:02:39.2]} 16. Qe1 {[%clk 0:02:24.9]} 16... a5 {[%clk 0:02:35.3]} 17.
Qh4 {[%clk 0:02:23.5]} 17... Nh7 {[%clk 0:02:33.9]} 18. Qf2 {[%clk 0:02:20.9]}
18... b4 {[%clk 0:02:33.6]} 19. axb4 {[%clk 0:02:19.1]} 19... axb4 {[%clk
0:02:34.5]} 20. g4 {[%clk 0:02:18.5]} 20... d5 {[%clk 0:02:32.6]} 21. e5 {[%clk
0:02:16.3]} 21... hxg4 {[%clk 0:02:31.8]} 22. hxg4 {[%clk 0:02:15.9]} 22... bxc3
{[%clk 0:02:32.3]} 23. bxc3 {[%clk 0:02:15.4]} 23... d4 {[%clk 0:02:32.8]} 24.
c4 {[%clk 0:02:12.8]} 24... Nb4 {[%clk 0:02:33]} 25. g5 {[%clk 0:02:07.8]} 25...
Bxe5 {[%clk 0:02:20.9]} 26. fxe5 {[%clk 0:01:58.7]} 26... Qxg5 {[%clk
0:02:20.9]} 27. Ne4 {[%clk 0:01:49.3]} 27... Bxe4 {[%clk 0:02:20.5]} 28. dxe4
{[%clk 0:01:50.2]} 28... Qh6 {[%clk 0:02:06.1]} 29. Kg2 {[%clk 0:01:37.4]} 29...
d3 {[%clk 0:01:42.1]} 30. Rh1 {[%clk 0:01:28.8]} 30... dxe2 {[%clk 0:01:40.1]}
31. Bg3 {[%clk 0:01:28.3]} 31... Qxc1 {[%clk 0:01:23.3]} 32. Rxc1 {[%clk
0:01:25.8]} 32... Nd3 {[%clk 0:01:23.8]} 33. Qe3 {[%clk 0:01:24.3]} 33... Nxc1
{[%clk 0:01:22.6]} 34. Qxc1 {[%clk 0:01:24]} 34... Rfd8 {[%clk 0:01:20.8]} 35.
Qe3 {[%clk 0:01:22.6]} 35... Rd1 {[%clk 0:01:04.9]} 36. Qxe2 {[%clk 0:01:21.7]}
36... Rcd8 {[%clk 0:01:05.5]} 37. Bf2 {[%clk 0:01:18.8]} 37... g5 {[%clk
0:01:02.1]} 38. Qe3 {[%clk 0:01:14.5]} 38... g4 {[%clk 0:01:00.2]} 39. Ng5
{[%clk 0:01:10.5]} 39... R8d3 {[%clk 0:00:58.6]} 40. Qf4 {[%clk 0:01:09.4]}
40... Nxg5 {[%clk 0:00:55.1]} 41. Qxg5+ {[%clk 0:01:07.9]} 41... Kh7 {[%clk
0:00:53.8]} 42. Qh5+ {[%clk 0:00:57.1]} 42... Kg7 {[%clk 0:00:52.1]} 43. Qxg4+
{[%clk 0:00:55.8]} 43... Kh7 {[%clk 0:00:52.6]} 44. Be3 {[%clk 0:00:49.2]} 44...
Ra1 {[%clk 0:00:32.9]} 45. Qh5+ {[%clk 0:00:42.5]} 45... Kg8 {[%clk 0:00:31.9]}
46. Qg5+ {[%clk 0:00:41.3]} 46... Kh7 {[%clk 0:00:31.9]} 47. Qh5+ {[%clk
0:00:34.9]} 47... Kg8 {[%clk 0:00:31.6]} 48. Qe2 {[%clk 0:00:34.4]} 48... Raa3
{[%clk 0:00:30.2]} 49. Bf2 {[%clk 0:00:32]} 49... Rac3 {[%clk 0:00:28.1]} 50.
Qg4+ {[%clk 0:00:29.5]} 50... Kh7 {[%clk 0:00:27.8]} 51. Qh5+ {[%clk 0:00:27.6]}
51... Kg8 {[%clk 0:00:27.9]} 52. Qg5+ {[%clk 0:00:20.1]} 52... Kh7 {[%clk
0:00:28.2]} 53. Qf6 {[%clk 0:00:19.1]} 53... Kg8 {[%clk 0:00:28.1]} 54. Bxc5
{[%clk 0:00:17.5]} 54... Rg3+ {[%clk 0:00:26.8]} 55. Kf2 {[%clk 0:00:16.9]}
55... Rgd3 {[%clk 0:00:19.7]} 56. Qg5+ {[%clk 0:00:15.7]} 56... Kh7 {[%clk
0:00:19.7]} 57. Bf8 {[%clk 0:00:14.9]} 57... Rc2+ {[%clk 0:00:19]} 58. Ke1
{[%clk 0:00:14.9]} 58... Rg3 {[%clk 0:00:07.8]} 59. Qxg3 {[%clk 0:00:13.6]}
59... Rc1+ {[%clk 0:00:06.1]} 60. Kd2 {[%clk 0:00:13.5]} 60... Rg1 {[%clk
0:00:06.1]} 61. Qxg1 {[%clk 0:00:12.7]} 61... f5 {[%clk 0:00:06.2]} 62. Qg7#
{[%clk 0:00:13.6]} 1-0

[Event "*** SCC Grand Prix: Titled Tuesday Blitz"]
[Site "Chess.com"]
[Date "2020.09.29"]
[Round "10"]
[White "Indianlad"]
[Black "Hikaru"]
[Result "1/2-1/2"]
[WhiteElo "2948"]
[BlackElo "3231"]
[TimeControl "180+1"]
[EndTime "11:57:01 PDT"]
[Termination "Game drawn by stalemate"]

1. d4 {[%clk 0:03:00.3]} 1... Nf6 {[%clk 0:02:58.4]} 2. c4 {[%clk 0:03:00.1]}
2... g6 {[%clk 0:02:55.8]} 3. g3 {[%clk 0:03:00.5]} 3... Bg7 {[%clk 0:02:55.4]}
4. Bg2 {[%clk 0:03:00.9]} 4... O-O {[%clk 0:02:56.3]} 5. Nc3 {[%clk 0:03:01.3]}
5... d6 {[%clk 0:02:56.6]} 6. Nf3 {[%clk 0:03:01.7]} 6... Nc6 {[%clk 0:02:57]}
7. Bf4 {[%clk 0:03:01.9]} 7... Bg4 {[%clk 0:02:50.5]} 8. O-O {[%clk 0:02:49.7]}
8... Nd7 {[%clk 0:02:48.5]} 9. d5 {[%clk 0:02:25.6]} 9... Bxf3 {[%clk
0:02:47.7]} 10. exf3 {[%clk 0:02:25.1]} 10... Na5 {[%clk 0:02:48.2]} 11. Qd3
{[%clk 0:02:16.4]} 11... e5 {[%clk 0:02:23.6]} 12. Be3 {[%clk 0:02:14.1]} 12...
b6 {[%clk 0:02:22.1]} 13. b4 {[%clk 0:02:11.7]} 13... Nb7 {[%clk 0:02:22.3]} 14.
a3 {[%clk 0:02:11.9]} 14... f5 {[%clk 0:02:20.5]} 15. Rac1 {[%clk 0:01:54.3]}
15... h5 {[%clk 0:02:12.5]} 16. f4 {[%clk 0:01:52.6]} 16... Re8 {[%clk
0:01:55.7]} 17. Ne2 {[%clk 0:01:46.6]} 17... a5 {[%clk 0:01:54]} 18. fxe5 {[%clk
0:01:46.2]} 18... axb4 {[%clk 0:01:45.7]} 19. axb4 {[%clk 0:01:43.8]} 19... Nxe5
{[%clk 0:01:42.9]} 20. Qd2 {[%clk 0:01:39.1]} 20... Ng4 {[%clk 0:01:42.8]} 21.
Nf4 {[%clk 0:01:18.6]} 21... Nxe3 {[%clk 0:01:39.9]} 22. fxe3 {[%clk 0:01:19.5]}
22... Bh6 {[%clk 0:01:39.6]} 23. Ne6 {[%clk 0:00:55.7]} 23... Qe7 {[%clk
0:01:38.9]} 24. Ra1 {[%clk 0:00:50.9]} 24... Rxa1 {[%clk 0:01:32.3]} 25. Rxa1
{[%clk 0:00:50.9]} 25... Nd8 {[%clk 0:01:33]} 26. Ra7 {[%clk 0:00:44.3]} 26...
Kh7 {[%clk 0:00:39.5]} 27. Qd4 {[%clk 0:00:21.3]} 27... Nxe6 {[%clk 0:00:39.6]}
28. dxe6 {[%clk 0:00:21.7]} 28... Qxe6 {[%clk 0:00:40.1]} 29. Rxc7+ {[%clk
0:00:21.6]} 29... Re7 {[%clk 0:00:40.7]} 30. Rxe7+ {[%clk 0:00:21.9]} 30... Qxe7
{[%clk 0:00:41.6]} 31. Kf2 {[%clk 0:00:21.5]} 31... Qa7 {[%clk 0:00:37.8]} 32.
Qxd6 {[%clk 0:00:13.3]} 32... Qa2+ {[%clk 0:00:37.2]} 33. Kf3 {[%clk 0:00:14]}
33... Qxc4 {[%clk 0:00:35.4]} 34. Qe7+ {[%clk 0:00:13.7]} 34... Bg7 {[%clk
0:00:35.3]} 35. h4 {[%clk 0:00:13.2]} 35... Qc2 {[%clk 0:00:33.6]} 36. Bf1
{[%clk 0:00:11.1]} 36... Qc1 {[%clk 0:00:31]} 37. Kf2 {[%clk 0:00:11]} 37... Kh6
{[%clk 0:00:30.1]} 38. Qg5+ {[%clk 0:00:10.9]} 38... Kh7 {[%clk 0:00:30.6]} 39.
Qe7 {[%clk 0:00:11.8]} 39... Qc6 {[%clk 0:00:29.3]} 40. Be2 {[%clk 0:00:10.6]}
40... Qh1 {[%clk 0:00:29.5]} 41. Bf3 {[%clk 0:00:10.5]} 41... Qc1 {[%clk
0:00:28.9]} 42. Be2 {[%clk 0:00:10.6]} 42... Qc3 {[%clk 0:00:28.9]} 43. Bf1
{[%clk 0:00:10]} 43... Qc6 {[%clk 0:00:25.8]} 44. Be2 {[%clk 0:00:09.8]} 44...
Qc8 {[%clk 0:00:26]} 45. Bf1 {[%clk 0:00:10]} 45... Kh8 {[%clk 0:00:26.1]} 46.
Be2 {[%clk 0:00:09.7]} 46... Bf8 {[%clk 0:00:23.2]} 47. Qf6+ {[%clk 0:00:09]}
47... Kh7 {[%clk 0:00:23.8]} 48. Qf7+ {[%clk 0:00:09.5]} 48... Bg7 {[%clk
0:00:23.5]} 49. Qe7 {[%clk 0:00:09.8]} 49... Qb8 {[%clk 0:00:20.6]} 50. Bc4
{[%clk 0:00:08.4]} 50... b5 {[%clk 0:00:20.6]} 51. Be2 {[%clk 0:00:08.3]} 51...
Qa8 {[%clk 0:00:20.5]} 52. Bxb5 {[%clk 0:00:07.8]} 52... Qa2+ {[%clk 0:00:19.7]}
53. Be2 {[%clk 0:00:08.3]} 53... Qb2 {[%clk 0:00:20.4]} 54. b5 {[%clk
0:00:08.8]} 54... Qe5 {[%clk 0:00:21]} 55. Qxe5 {[%clk 0:00:08.5]} 55... Bxe5
{[%clk 0:00:21.9]} 56. b6 {[%clk 0:00:09.2]} 56... Kg7 {[%clk 0:00:22.3]} 57.
Bf3 {[%clk 0:00:09.7]} 57... Kf6 {[%clk 0:00:22.3]} 58. Bc6 {[%clk 0:00:09.9]}
58... Bb8 {[%clk 0:00:21.4]} 59. Be8 {[%clk 0:00:09.9]} 59... Bd6 {[%clk
0:00:20.2]} 60. b7 {[%clk 0:00:10.3]} 60... Bb8 {[%clk 0:00:20.5]} 61. Kf3
{[%clk 0:00:10.8]} 61... Bc7 {[%clk 0:00:21]} 62. Bc6 {[%clk 0:00:11.4]} 62...
Bb8 {[%clk 0:00:21.4]} 63. e4 {[%clk 0:00:12]} 63... fxe4+ {[%clk 0:00:21.2]}
64. Bxe4 {[%clk 0:00:12.9]} 64... g5 {[%clk 0:00:21.3]} 65. Bc6 {[%clk
0:00:13.1]} 65... gxh4 {[%clk 0:00:21.8]} 66. gxh4 {[%clk 0:00:14]} 66... Kg7
{[%clk 0:00:22.5]} 67. Be8 {[%clk 0:00:14.4]} 67... Kh8 {[%clk 0:00:23.2]} 68.
Ke4 {[%clk 0:00:14.8]} 68... Bc7 {[%clk 0:00:24.1]} 69. Bxh5 {[%clk 0:00:15.1]}
69... Bb8 {[%clk 0:00:25]} 70. Bg4 {[%clk 0:00:15.6]} 70... Bh2 {[%clk
0:00:25.5]} 71. h5 {[%clk 0:00:16.1]} 71... Bb8 {[%clk 0:00:26.4]} 72. Kf5
{[%clk 0:00:16.9]} 72... Bh2 {[%clk 0:00:26.9]} 73. Kg6 {[%clk 0:00:17.8]} 73...
Bb8 {[%clk 0:00:27.6]} 74. Kg5 {[%clk 0:00:18.7]} 74... Bh2 {[%clk 0:00:28]} 75.
Kf6 {[%clk 0:00:19.6]} 75... Bb8 {[%clk 0:00:28.8]} 76. Kf7 {[%clk 0:00:20.5]}
76... Bh2 {[%clk 0:00:29.4]} 77. Ke6 {[%clk 0:00:21.4]} 77... Bb8 {[%clk
0:00:30.3]} 78. Kd7 {[%clk 0:00:22.3]} 78... Bh2 {[%clk 0:00:30.7]} 79. Kc8
{[%clk 0:00:23.2]} 79... Bg3 {[%clk 0:00:31.2]} 80. b8=Q {[%clk 0:00:24.1]}
80... Bxb8 {[%clk 0:00:31.2]} 81. Kxb8 {[%clk 0:00:25]} 81... Kg7 {[%clk
0:00:32.1]} 82. Kc7 {[%clk 0:00:25.9]} 82... Kh8 {[%clk 0:00:33]} 83. Kd6 {[%clk
0:00:26.5]} 83... Kg7 {[%clk 0:00:33.9]} 84. Ke5 {[%clk 0:00:27.4]} 84... Kh8
{[%clk 0:00:34.8]} 85. Kf4 {[%clk 0:00:28.3]} 85... Kg7 {[%clk 0:00:35.7]} 86.
Kg5 {[%clk 0:00:29.2]} 86... Kh8 {[%clk 0:00:36.6]} 87. h6 {[%clk 0:00:30]}
87... Kh7 {[%clk 0:00:36.8]} 88. Bf5+ {[%clk 0:00:30.2]} 88... Kh8 {[%clk
0:00:37.7]} 89. Be4 {[%clk 0:00:30.1]} 89... Kg8 {[%clk 0:00:37.5]} 90. Kg6
{[%clk 0:00:30.8]} 90... Kh8 {[%clk 0:00:38.4]} 91. h7 {[%clk 0:00:31.4]}
1/2-1/2